Cogmind - Beta 16.1 @@@ ROGUE MODE // 2026.04.30 @ 11:41:42 Player: The Overplayer Result: Destroyed by J5-ZWG(j) with Overtuned Pulse Rifle Performance ------------- Evolutions (0) 0 Regions Visited (3) 600 Robots Destroyed (36) 180 Value Destroyed (863) 863 Prototype IDs (0) 0 Alien Tech Used (0) 0 Bonus (0) 0 TOTAL SCORE: 1643 Bonus ------- None Cogmind --------- Core Integrity 0/250 Matter 164/300 Energy 98/100 System Corruption 0% Temperature Danger (401) Movement Treading (250) Ox1 Location -8/Recycling Parts ------- > --- POWER (1) -------- Improved Ion Engine > --- PROPULSION (2) --- Armored Treads > --- UTILITY (2) ------ Small Storage Unit Makeshift Light Armor Plating > --- WEAPON (2) ------- Subdweller Beam Cannon Barrage Gun > --- INVENTORY (8) ---- Scrap Engine Cooling System High-capacity Matter Pod (27) Authchip [R/NC] Authchip [Propulsion] Assault Cannon Peak State ------------ > --- POWER ------------ Improved Ion Engine > --- PROPULSION ------- Armored Treads Subdweller Monowheel > --- UTILITY ---------- Small Storage Unit Makeshift Light Armor Plating > --- WEAPON ----------- Barrage Gun Assault Cannon > --- INVENTORY -------- Scrap Engine Cooling System High-capacity Matter Pod Authchip [R/NC] Authchip [Propulsion] Subdweller Beam Cannon [Rating: 21] Favorites ----------- Power Improved Ion Engine Engine Improved Ion Engine Propulsion Light Treads Treads Light Treads Leg Aluminum Leg Wheel Subdweller Monowheel Utility Small Storage Unit Device Seismic Detector Storage Small Storage Unit Protection Makeshift Light Armor Plating Weapon Beam Cannon Energy Gun Small Laser Energy Cannon Beam Cannon Ballistic Gun Barrage Gun Ballistic Cannon Assault Cannon Launcher Grenade Launcher Build | -11 -10 -10 -8 ------- Run | Yrd Mat Sub Rec Slots Evolved . | . . . . Power . | . . . . Propulsion . | . . . . Utility . | . . . . Weapon . | . . . . Parts Attached 29 | 7 9 9 4 Power 5 | 1 3 1 . Engine 5 | 1 3 1 . Core . | . . . . Reactor . | . . . . Propulsion 5 | 2 . 2 1 Treads 3 | 2 . . 1 Leg 1 | . . 1 . Wheel 1 | . . 1 . Hover . | . . . . Flight . | . . . . Utility 6 | 2 1 2 1 Device 2 | 1 . 1 . Storage 1 | 1 . . . Processor . | . . . . Hackware . | . . . . Protection 3 | . 1 1 1 Artifact . | . . . . Weapon 13 | 2 5 4 2 Energy Gun 1 | 1 . . . Energy Cannon 7 | . 5 2 . Ballistic Gun 2 | 1 . . 1 Ballistic Cannon 1 | . . . 1 Launcher 2 | . . 2 . Special Weapon . | . . . . Impact Weapon . | . . . . Slashing Weapon . | . . . . Piercing Weapon . | . . . . Special Melee Weapon . | . . . . Unidentified Prototypes . | . . . . Parts Lost 6 | . . 4 2 Power . | . . . . Propulsion 3 | . . 2 1 Utility 1 | . . 1 . Weapon 2 | . . 1 1 Highest Loss Streak 2 | . . 2 2 To Critical Strikes . | . . . . Average Backups 6 | . 6 7 7 Power . | . . 1 . Propulsion . | . . . . Utility 3 | . 2 3 4 Weapon 2 | . 3 2 1 Tool/Special . | . . . . Unused Backups 12 | . 6 1 5 Power 2 | . 2 . . Propulsion 1 | . . . 1 Utility 7 | . 2 1 4 Weapon 2 | . 2 . . Tool/Special . | . . . . Average Slot Usage (%) 98 | . 99 98 98 Engine 14 | . 14 14 14 Treads 23 | . 28 24 8 Wheel 3 | . . 3 13 Device 4 | . 13 . . Storage 14 | . 14 14 14 Protection 9 | . . 12 14 Energy Cannon 20 | . 22 19 16 Ballistic Gun 2 | . 2 . 10 Launcher 4 | . . 7 . Peak Build Rating 21 | 7 9 14 21 Average Rating 11 | 4 7 12 17 On Entrance 7 | . 7 9 14 Avg Prop Armor Cover (%) 10 | . . 10 11 Naked Turns . | . . . . Heaviest Build 32 | 13 21 32 32 Greatest Support 40 | 40 40 40 20 Greatest Overweight (x) 1 | . . 1 1 Average Overweight (x) . | . . . 1 Largest Inventory Capacity 8 | 8 8 8 8 Average Capacity 7 | 7 8 8 8 Most Carried 8 | 3 8 8 8 Average Carried 7 | . 6 7 7 Final Capacity 8 | 8 8 8 8 Final Carried 8 | 2 8 7 7 Class Distribution -------------------- 100% | Mutant Dominant Class ---------------- Mutant | -10/Materials Mutant | -10/Subcaves Mutant | -8/Recycling Resources | -11 -10 -10 -8 ----------- Run | Yrd Mat Sub Rec Matter Collected 743 | 271 73 303 96 Remotely . | . . . . Salvage Created 902 | 99 371 332 100 Parts 62 | 7 28 19 8 Haulers Intercepted . | . . . . Recyclers Shooed . | . . . . Parts Field Recycled . | . . . . Retrieved Matter . | . . . . Parts Self-Destructed 14 | . . 14 . Prevented . | . . . . Parts Restored . | . . . . Kills | -11 -10 -10 -8 ------- Run | Yrd Mat Sub Rec Combat Hostiles Destroyed 27 | . 14 12 1 Guns 2 | . 1 . 1 Cannons 15 | . 13 2 . AOE 10 | . . 10 . Classes Destroyed 12 | 2 5 3 2 Worker 1 | . 1 . . Tunneler 2 | 2 . . . Recycler 1 | 1 . . . Operator 2 | . 2 . . Turret 2 | . . 2 . Watcher 1 | . 1 . . Swarmer 11 | . 9 2 . Grunt 5 | . 5 . . Sentry 1 | . . 1 . Subdweller 9 | . . 9 . Scientist 1 | . . . 1 Scrapper 1 | . . . 1 Best Kill Streak 5 | 2 5 4 2 Combat Bots Only 4 | . 3 4 1 Max Kills in Single Turn 2 | 1 1 2 1 Gunslinging . | . . . . Exploded 2 | . . 2 . Melee . | . . . . Uniques/NPCs Destroyed . | . . . . Combat | -11 -10 -10 -8 -------- Run | Yrd Mat Sub Rec Hostile Shots Fired 141 | . 55 63 23 Missed 30 | . 9 18 3 Hits 111 | . 46 45 20 Projectile 111 | . 46 45 20 Critical Strikes 1 | . . . 1 Damage Taken 1525 | . 418 676 431 Core 264 | . 87 61 116 Absorbed by Shields . | . . . . Core Remaining (%) 100 | 100 . . . Volleys Fired 73 | 8 35 22 8 Largest 2 | 2 2 2 2 Hottest 160 | 60 120 160 80 Shots Fired 135 | 9 70 42 14 Gun 29 | 9 14 . 6 Cannon 86 | . 56 22 8 Launcher 20 | . . 20 . Special . | . . . . Kinetic 20 | 1 7 . 12 Thermal 95 | 8 63 22 2 Explosive 20 | . . 20 . Electromagnetic . | . . . . Robot Hit Streak 8 | 6 8 8 7 Robot Miss Streak 3 | 1 3 2 2 Penetration Max . | . . . . Secondary Targets . | . . . . Shots Hit Robots 85 | 8 39 27 11 Core Hits 49 | 4 19 22 4 Critical Kills 1 | . 1 . . Critical Parts Destroyed . | . . . . Critical Strikes 1 | . 1 . . Meltdown 1 | . 1 . . Melee Attacks . | . . . . Impact . | . . . . Slashing . | . . . . Piercing . | . . . . Sneak Attacks . | . . . . Combat Hostiles . | . . . . Follow-up Attacks . | . . . . Damage Inflicted 2325 | 84 732 1242 267 Guns 238 | 84 66 . 88 Cannons 1106 | . 666 261 179 Explosions 981 | . . 981 . Melee . | . . . . Ramming . | . . . . Kinetic 244 | 8 26 . 210 Thermal 1100 | 76 706 261 57 Explosive 981 | . . 981 . Electromagnetic . | . . . . Impact . | . . . . Slashing . | . . . . Piercing . | . . . . Highest Corruption . | . . . . Average Corruption . | . . . . Corruption Purged . | . . . . Corruption Blocked . | . . . . Overload Shots . | . . . . Overflow Damage 3 | . . 3 . Projectiles . | . . . . Explosions 3 | . . 3 . Melee . | . . . . Knockbacks 1 | . . . 1 Impact . | . . . . Kinetic . | . . . . Secondary 1 | . . . 1 Self-Inflicted Damage 40 | . . 40 . Shots 3 | . . 3 . Rammed . | . . . . Targets Rammed . | . . . . Kicked . | . . . . Crushed . | . . . . Highest Temperature 409 | 20 262 186 409 Average Temperature 100 | 15 94 56 210 Received Heat Transfer 532 | . 102 165 265 Effects 4 | . . . 4 Energy Bleed 1 | . . . 1 Interference 2 | . . . 2 Short Circuit 1 | . . . 1 Siege Activations . | . . . . Martial Activations . | . . . . Shielding Activations . | . . . . Robots Disrupted . | . . . . Combat Hostiles . | . . . . Robots Corrupted . | . . . . Combat Hostiles . | . . . . Parts Fried . | . . . . Impact Corruptions . | . . . . Robots Melted 1 | . 1 . . Combat Hostiles . | . . . . Parts Melted 8 | . 8 . . Heat Transferred 2101 | 175 1506 370 50 Parts Sabotaged . | . . . . Parts Stolen . | . . . . Parts Stripped . | . . . . Power Chain Reactions . | . . . . Alert | -11 -10 -10 -8 ------- Run | Yrd Mat Sub Rec Maximum Alert Level . | . . . . Low Security (%) 100 | 100 100 . 100 Level 1 . | . . . . Level 2 . | . . . . Level 3 . | . . . . Level 4 . | . . . . Level 5 . | . . . . High Security . | . . . . Max Security . | . . . . Peak Influence 168 | 5 168 . 57 Initial 57 | . . . 57 Average 51 | 1 76 . 11 Influence Increases 579 | 15 406 145 13 Destroy 0b10 Robot/C 380 | . 280 100 . Destroy 0b10 Robot/NC 35 | 15 20 . . Destroy Leader 62 | . 62 . . Successful Hack 25 | . 12 . 13 Destroy Structure 2 | . 2 . . Lose Combat Pursuer 75 | . 30 45 . Influence Decreases 579 | 15 288 142 134 Entered New Map 122 | . . 58 64 Time Decay 457 | 15 288 84 70 Squads Dispatched 3 | . 3 . . Investigation 1 | . 1 . . Extermination . | . . . . Reinforcement 2 | . 2 . . Assault . | . . . . Garrison . | . . . . Intercept . | . . . . Searches Triggered . | . . . . Construction Impeded . | . . . . Haulers Reinforced . | . . . . Active Scanning Responses . | . . . . Cargo Convoy Interrupts . | . . . . Stealth | -11 -10 -10 -8 --------- Run | Yrd Mat Sub Rec Distress Signals 3 | . 3 . . Communications Jammed . | . . . . Distress Signals . | . . . . Times Spotted 44 | . 25 17 2 Peak Tracking Total 5 | . 3 5 4 Tactical Retreats 3 | . 2 1 . Traps | -11 -10 -10 -8 ------- Run | Yrd Mat Sub Rec Traps Triggered 3 | . 1 2 . Indirectly . | . . . . Trap Hack Attempts . | . . . . Triggered . | . . . . Disarmed . | . . . . Reprogrammed . | . . . . Reused . | . . . . Traps Extracted . | . . . . Installed . | . . . . Triggered . | . . . . Machines | -11 -10 -10 -8 ---------- Run | Yrd Mat Sub Rec Machines Disabled 1 | . . 1 . Max in Single Turn 1 | . . 1 . Machines Repaired . | . . . . Machines Dismantled . | . . . . Machines Sabotaged . | . . . . Overloaded Fab Kills . | . . . . Hacking | -11 -10 -10 -8 --------- Run | Yrd Mat Sub Rec Machines Accessed 12 | . 4 . 8 Terminals 5 | . 3 . 2 Fabricators . | . . . . Repair Stations 1 | . 1 . . Recycling Units 4 | . . . 4 Scanalyzers . | . . . . Garrison Access . | . . . . Total Hacks 47 | . 9 . 38 Successful 38 | . 6 . 32 Failed 9 | . 3 . 6 Catastrophic . | . . . . Database Lockouts . | . . . . Manual 12 | . 7 . 5 Terminals 14 | . 8 . 6 Fabricators . | . . . . Repair Stations 1 | . 1 . . Recycling Units 11 | . . . 11 Scanalyzers . | . . . . Garrison Access . | . . . . Terminal Hacks 22 | . . . 22 Record 19 | . . . 19 Zone Layout 1 | . . . 1 Release Object 2 | . . . 2 Fabricator Hacks . | . . . . Repair Station Hacks . | . . . . Recycling Unit Hacks 7 | . . . 7 Report Inventory 4 | . . . 4 Retrieve Components 3 | . . . 3 Scanalyzer . | . . . . Garrison Access Hacks . | . . . . Unauthorized Hacks 9 | . 6 . 3 Terminals 7 | . 5 . 2 Assimilate 1 | . 1 . . Botnet 3 | . 2 . 1 Skim 3 | . 2 . 1 Fabricators . | . . . . Repair Stations 1 | . 1 . . Mechanics 1 | . 1 . . Recycling Units 1 | . . . 1 Monitor 1 | . . . 1 Scanalyzers . | . . . . Garrison Access . | . . . . Data Cores Recovered . | . . . . Used . | . . . . Hacking Detections 8 | . 4 . 4 Full Trace Events . | . . . . Feedback Events . | . . . . Feedback Blocked . | . . . . Robot Schematics Acquired . | . . . . Robots Built . | . . . . Authchips . | . . . . Time . | . . . . Total Robot Build Rating . | . . . . Part Schematics Acquired . | . . . . Parts Built . | . . . . Authchips . | . . . . Time . | . . . . Total Part Build Rating . | . . . . Part Studies Acquired . | . . . . Parts Repaired . | . . . . Time . | . . . . Parts Recycled . | . . . . Recycled Matter . | . . . . Retrieved Matter . | . . . . Retrieved Components 8 | . . . 8 Parts Scanalyzed . | . . . . Part Schematics Acquired . | . . . . Parts Damaged . | . . . . Bothacking | -11 -10 -10 -8 ------------ Run | Yrd Mat Sub Rec Used RIF Installer . | . . . . Robots Hacked . | . . . . Non-combat . | . . . . Combat . | . . . . Robot Hacks Applied . | . . . . Relay Couplers Released . | . . . . Fabnet Peak Effective % . | . . . . Robots Rewired . | . . . . Allies Hacked . | . . . . Hacks Repelled . | . . . . Allies | -11 -10 -10 -8 -------- Run | Yrd Mat Sub Rec Total Allies . | . . . . Largest Group . | . . . . Highest-Rated Group . | . . . . Highest-Rated Ally . | . . . . Total Orders . | . . . . Ally Attacks . | . . . . Total Damage . | . . . . Kills . | . . . . Allies Corrupted . | . . . . Allies Melted . | . . . . Intel | -11 -10 -10 -8 ------- Run | Yrd Mat Sub Rec Active Infowar (turns) 843 | 12 831 . . Seismic 843 | 12 831 . . Robot Analysis Total . | . . . . Derelict Logs Recovered 1 | . . 1 . Drone Launches . | . . . . Drone Recoveries . | . . . . Exploration | -11 -10 -10 -8 ------------- Run | Yrd Mat Sub Rec Turns Passed 2796 | 135 842 1479 340 Spaces Moved 1662 | 69 412 938 243 Core 4 | 4 . . . Treads 1134 | 65 412 655 2 Legs . | . . . . Wheels 524 | . . 283 241 Hover . | . . . . Flight . | . . . . Fastest Speed 50 | 50 160 110 120 Average Speed 147 | 153 160 147 121 Slowest Speed 250 | 160 160 240 250 Overloaded Moves . | . . . . Propulsion Burnouts . | . . . . Robots Hopped . | . . . . Potential Cave-ins . | . . . . Cave-ins Triggered . | . . . . Exploration Rate (%) 52 | 4 94 68 43 Regions Visited 3 Branch Regions 2 Pre-discovered Areas . | . . . . Known Exits Taken . | . . . . Unknown Exits Taken 3 | 1 1 1 . Scrap Searched 2 | . . 2 . Spaces Dug . | . . . . Terrain Destroyed 112 | . . 112 . Melee . | . . . . Projectile . | . . . . AOE 112 | . . 112 . Terrain Rammed . | . . . . Walls Destroyed . | . . . . Machines Disabled . | . . . . Actions | -11 -10 -10 -8 --------- Run | Yrd Mat Sub Rec Total 1883 | 87 530 988 278 Wait 47 | . 43 . 4 Move 1659 | 68 411 937 243 Hop . | . . . . Pick Up 32 | 4 17 5 6 Fast Attach 14 | 5 3 3 3 Attach 6 | 2 . 2 2 Detach 1 | . . 1 . Swap 22 | . 6 12 4 Drop 29 | . 15 6 8 Fire 73 | 8 35 22 8 Melee . | . . . . Ram . | . . . . Kick . | . . . . Crush . | . . . . Escape Stasis . | . . . . Rewire . | . . . . Trap . | . . . . Miscellaneous . | . . . . Route ------- -11/Scrapyard -10/Materials (discovered 4 exits: [*Mat x3] / [*Sub]) -10/Subcaves (discovered 3 exits: [*Mat x2] / *Rec) -8/Recycling History --------- Turn | Location | Event 23 | -11/Scrapyard | Discovered new exit (range 15) 136 | -11/Scrapyard | Entered Materials 322 | -10/Materials | Build established: Mutant 486 | -10/Materials | Discovered new exit (range 15) 643 | -10/Materials | Discovered new exit (range 4) 875 | -10/Materials | Discovered new exit (range 4) 964 | -10/Materials | Discovered new exit (range 8) 978 | -10/Materials | Entered Subcaves 1815 | -10/Subcaves | A swath of the cavern ceiling suddenly collapsed 1852 | -10/Subcaves | Discovered new exit (range 8) 1871 | -10/Subcaves | Ambushed by Subdweller buried in earth 2077 | -10/Subcaves | Discovered new exit (range 4) 2123 | -10/Subcaves | Learned 2 Materials zone layouts 2133 | -10/Subcaves | Shifting Twisted Machinery released Flamer 2146 | -10/Subcaves | Shifting Twisted Machinery released Humpback 2417 | -10/Subcaves | Core integrity fell below 50% 2419 | -10/Subcaves | Discovered new exit (range 15) 2457 | -10/Subcaves | Entered Recycling 2733 | -8/Recycling | Scanned before Scraplab entrance 2752 | -8/Recycling | Entered Scraplab 2766 | -8/Recycling | Angered Scraplab inhabitants 2767 | -8/Recycling | Found Prototype Device 2789 | -8/Recycling | Core integrity fell below 20% 2797 | -8/Recycling | Destroyed by J5-ZWG(j) with Overtuned Pulse Rifle Last Messages --------------- 02771_ Critical hit (Burn: +50). 02773_ 1B-YKY(j) heat spikes uncontrollably. 02777_ 1B-YKY(j) destroyed. Prototype Device integrity failing. 02784_ Sub. Monowheel destroyed. 02786_ TY-K0V(c) destroyed. 02788_ J5-ZWG(j) heat damages Ovr. Pulse Rifle. 02789_ Overheating: System interference. 02789_ Assault Cannon temporarily disabled. 02789_ Barrage Gun temporarily disabled. 02789_ J5-ZWG(j) heat short circuits Scrap Suit. 02789_ >> MONITOR: Recycling Unit R005 accepting Sub. Beam Cannon (35%). Prototype Device integrity failing. 02792_ Overheating: Energy bleed (-62). 02792_ >> MONITOR: Recycling Unit R005 accepting Hrd. Medium Armor Plating (72%). 02796_ Imp. Ion Engine broken. 02796_ Overheating: Short circuit. 02797_ Acquired 3 matter. Map ----- +----------------------------------------------------+ | | | | | | | | | | | | | | | | | | | | | | | | | | | | | | | | | | | | | | | | | | | | | ???????????????????????#########??#??????????????? | | ???????????????????????#"" """"#? #??????????????? | | ???????????????????????# X ## #??????????????? | | ?????????????????#######!@%!= #??????????????? | | ????????????????## +!j!% #??????????????? | | ????????????????# #####%[==c "#??????????????? | | ????????????????## #???#%=% ""#??????????????? | | ?????????????????# #???#"& "& X ""#??????????????? | | ?????????????????# #???#"""""""" #??????????????? | | ??????????????#####################??????????????? | | ??????????????# #??????????????????????????? | | ??????????????# #??????????????????????????? | | ??????????????# #??????????????????????????? | | ??????????????# #????????????????#####?????? | | ??????????????####+####??###???????????#"""#?????? | | ?????????????????# ####### #############"T"####### | | ?????????????????# """ | | ?????????????????# ##### "Y" # | | ?????????????#####+##### ![ """ """ # | | ?????????????# + """ """ # | | ?????????????# = [ ####### """ """ # | | ##########???# ! #?????# # | | #???# #?????# | | ! !! #???# [ * #?????# #####+##+######## | | ! #???#| ####### #??# # | | #???# ] + #??# + | | ! !! #???# / #########??# """" """" ### | | ! ! #???###########??????????# """" """" #?? | +----------------------------------------------------+ Best States ------------- Heat Dissipation 47 Energy Generation 12 Energy Capacity 265 Matter Stores 300 Matter Capacity 300 Sight Range 16 Terrain Scan Density 10 Armor Coverage 150 Evasion (%) 40 Recoil Reduction 2 Authchip Count 2 Item Schematics ----------------- None Robot Schematics ------------------ None Fabricated ------------ Nothing Repaired ---------- Nothing Studied --------- None Alien Tech Used ----------------- None Achievements -------------- None Challenges ------------ None Game ------ Seed PointySiegeChaincannon Manual? 0 Play Time 00:23:43 Cumulative 71.8 hours Start 2026.04.30 @ 11:19:05 End 2026.04.30 @ 11:41:42 Sessions 1 Manual Loads 0 Difficulty Rogue Special Mode None Game No. 76 Rogue 76 Adventurer 0 Explorer 0 Win Type - Total 1 Types 1/0/0/0/0/0/0/0/0/0 Lore% 31 Gallery% 44 Achievement% 39 Wizard Run 0 Options --------- Layout 1 ASCII 0 Keyboard 0 Movement Mouse Keybinds 0 Fullscreen 1 Font 24/Smallcaps Map View 50x35 Zoom Use 0% Tactical HUD 1 Map Filters NONE Filters NONE Steam 1 RUN: 09453fd9-e6ae-4339-896b-d8e73ff828a2